bitfinex/quotes_SOLUSD_20230905
["timestamp","ask_amount","ask_price","bid_price","bid_amount"]
[1693948020245,24.17576788,20.196,20.183,55.0]
[1693948020652,24.17576788,20.196,20.183,62.729]
[1693948020844,24.17576788,20.196,20.183,55.0]
[1693948022142,16.45176788,20.195,20.183,55.0]
[1693948022356,7.726,20.192,20.183,55.0]
[1693948028044,24.17676788,20.195,20.183,62.729]
[1693948037066,7.725,20.195,20.183,62.729]
[1693948040265,7.723,20.197,20.183,62.729]
[1693948042367,24.949,20.202,20.183,62.729]
[1693948042569,36.43616279,20.203,20.19,30.05]
[1693948042766,20.0,20.202,20.192,7.725]
[1693948042968,20.0,20.202,20.193,55.0]
[1693948044781,20.0,20.202,20.19,30.05]
[1693948044782,7.722,20.201,20.19,30.05]
[1693948045082,7.722,20.201,20.187,7.727]
[1693948046069,62.174,20.201,20.187,7.727]
[1693948046771,62.174,20.201,20.188,55.0]
[1693948047978,62.174,20.201,20.189,7.726]
[1693948048173,62.174,20.201,20.19,55.0]
[1693948050881,62.174,20.201,20.188,55.0]
[1693948051379,62.174,20.201,20.188,62.727]
[1693948052170,7.722,20.201,20.188,62.727]
[1693948052574,7.722,20.201,20.19,30.05]
[1693948052777,7.722,20.201,20.191,55.0]
[1693948056879,7.721,20.203,20.191,62.725]
[1693948057070,7.721,20.203,20.192,20.0]
[1693948057267,7.72,20.205,20.194,7.724]
[1693948057581,7.72,20.205,20.195,55.0]
[1693948058483,7.72,20.205,20.195,62.724]
[1693948061884,7.72,20.207,20.195,62.724]
[1693948078891,7.72,20.207,20.195,77.25891827]
[1693948080377,7.719,20.21,20.195,131.72691827]
[1693948081473,92.197,20.21,20.195,77.25891827]
[1693948081679,108.64876788,20.21,20.195,62.724]
[1693948081880,16.45176788,20.209,20.195,62.724]
[1693948082080,7.72,20.205,20.195,62.724]
[1693948082282,7.72,20.205,20.195,55.0]
[1693948082487,7.72,20.205,20.194,55.0]
[1693948082786,7.72,20.205,20.195,7.724]
[1693948083095,7.72,20.205,20.196,55.0]
[1693948084198,7.72,20.205,20.194,55.0]
[1693948085777,7.72,20.205,20.194,62.724]
[1693948092414,7.72,20.207,20.194,87.681]
[1693948101809,7.719,20.209,20.194,87.681]
[1693948111532,99.3776,20.214,20.2,30.05]
[1693948111721,20.0,20.213,20.202,7.721]
[1693948111921,20.0,20.213,20.203,55.0]
[1693948112323,7.716,20.217,20.204,7.721]
[1693948112525,7.716,20.217,20.205,55.0]
[1693948114334,7.716,20.217,20.205,62.72]
[1693948123133,30.05,20.22,20.205,62.72]
[1693948123349,7.715,20.219,20.205,62.72]
[1693948123729,30.05,20.22,20.205,62.72]
[1693948124237,7.713,20.224,20.205,62.72]
[1693948124443,7.713,20.224,20.205,161.21]
[1693948124635,30.05,20.227,20.21,30.05]
[1693948124944,7.712,20.228,20.214,7.717]
[1693948125141,30.05,20.23,20.214,7.717]
[1693948125329,30.05,20.23,20.218,7.715]
[1693948125738,30.05,20.23,20.219,55.0]
[1693948126034,7.712,20.228,20.219,55.0]
[1693948126236,37.761,20.23,20.219,62.715]
[1693948128841,7.711,20.23,20.219,62.715]
[1693948129035,7.711,20.23,20.219,55.0]
[1693948129236,30.05,20.23,20.22,55.0]
[1693948129544,115.1441,20.235,20.223,7.713]
[1693948129849,115.1441,20.235,20.221,24.923]
[1693948129850,7.71,20.232,20.221,7.714]
[1693948130045,7.71,20.232,20.222,55.0]
[1693948130554,7.71,20.232,20.221,55.0]
[1693948131032,7.71,20.232,20.22,55.0]
[1693948132541,7.71,20.232,20.218,55.0]
[1693948132846,7.71,20.232,20.218,7.715]
[1693948133050,7.71,20.232,20.22,7.714]
[1693948133240,7.71,20.232,20.216,38.63105834]
[1693948133442,7.713,20.225,20.212,7.718]
[1693948133647,128.419,20.23,20.216,7.716]
[1693948133648,30.05,20.23,20.216,7.716]
[1693948133836,37.761,20.23,20.216,7.716]
[1693948134647,54.363,20.235,20.22,7.714]
[1693948134844,20.0,20.234,20.221,55.0]
[1693948136140,7.711,20.23,20.221,55.0]
[1693948137933,37.761,20.23,20.217,32.643]
[1693948139170,20.0,20.234,20.217,87.052]
[1693948139458,7.711,20.231,20.217,87.052]
[1693948139660,7.711,20.231,20.219,7.715]
[1693948139836,7.711,20.231,20.22,55.0]
[1693948140355,7.711,20.231,20.219,7.715]
[1693948141639,30.05,20.23,20.22,55.0]
[1693948141843,7.712,20.228,20.218,62.715]
[1693948143266,7.712,20.228,20.218,55.0]
[1693948143554,7.712,20.228,20.217,55.0]
[1693948143754,7.712,20.228,20.218,7.715]
[1693948143956,7.712,20.228,20.219,55.0]
[1693948153658,7.712,20.228,20.222,100.0]
[1693948155359,62.092,20.228,20.222,100.0]
[1693948155759,91.45176788,20.227,20.222,100.0]
[1693948156057,131.022,20.226,20.222,100.0]
[1693948156262,62.103,20.224,20.222,100.0]
[1693948156448,44.922,20.223,20.222,68.218]
[1693948156648,44.922,20.223,20.222,33.733]
[1693948156844,44.922,20.223,20.183,255.45342906]
[1693948156845,44.922,20.223,20.198,54.46]
[1693948157059,44.922,20.223,20.196,98.531]
[1693948157060,30.05,20.22,20.204,7.721]
[1693948157265,7.716,20.216,20.204,7.721]
[1693948158866,62.128,20.216,20.202,7.721]
[1693948159061,62.128,20.216,20.203,20.0]
[1693948159772,62.128,20.216,20.204,55.0]
[1693948166688,30.05,20.21,20.198,7.723]
[1693948166854,7.719,20.209,20.199,85.0]
[1693948167670,7.719,20.209,20.199,55.0]
[1693948172468,7.718,20.211,20.199,62.722]
[1693948173879,7.719,20.209,20.199,55.0]
[1693948174456,7.719,20.209,20.199,62.722]
[1693948177974,84.462,20.217,20.199,62.722]
[1693948178277,7.717,20.216,20.205,7.72]
[1693948178459,24.928,20.218,20.203,24.946]
[1693948178460,7.716,20.218,20.207,7.719]
[1693948178655,7.716,20.218,20.208,55.0]
[1693948179257,7.716,20.218,20.208,62.719]
[1693948190868,7.716,20.218,20.208,55.0]
[1693948191081,7.716,20.218,20.206,55.0]
[1693948191480,7.716,20.218,20.205,55.0]
[1693948195287,24.16776788,20.218,20.205,55.0]
[1693948200185,24.16776788,20.218,20.203,7.721]
[1693948200186,24.16776788,20.218,20.204,55.0]
[1693948200386,24.16776788,20.218,20.204,62.72]
[1693948205792,24.16776788,20.218,20.204,55.0]
[1693948205994,24.16776788,20.218,20.203,55.0]
[1693948207792,24.16776788,20.218,20.203,62.721]
[1693948209576,24.16776788,20.218,20.2,37.772]
[1693948209783,30.05,20.21,20.197,7.723]
[1693948209994,7.719,20.208,20.197,7.723]
[1693948210191,30.05,20.21,20.197,7.723]
[1693948210490,7.719,20.209,20.197,7.723]
[1693948211724,7.719,20.209,20.198,55.0]
[1693948213286,7.719,20.209,20.197,7.723]
[1693948213489,7.719,20.209,20.198,7.723]
[1693948214588,7.719,20.209,20.199,55.0]
[1693948214902,7.719,20.209,20.197,55.0]
[1693948215706,62.15,20.209,20.197,55.0]
[1693948215904,62.15,20.209,20.195,55.0]
[1693948219690,62.15,20.209,20.193,55.0]
[1693948219892,62.15,20.209,20.193,62.725]
[1693948224407,62.15,20.209,20.191,7.726]
[1693948224408,20.0,20.208,20.191,7.726]
[1693948224603,32.667,20.203,20.19,40.09900989]
[1693948224799,20.0,20.202,20.188,7.727]
[1693948225002,7.723,20.199,20.189,30.0]
[1693948225194,7.723,20.199,20.19,7.726]
[1693948225800,7.723,20.199,20.191,55.0]
[1693948225995,7.723,20.199,20.19,7.726]
[1693948227009,7.723,20.199,20.187,40.29702969]
[1693948227208,7.723,20.199,20.188,55.0]
[1693948227509,7.723,20.199,20.187,55.0]
[1693948232517,7.723,20.199,20.185,55.0]
[1693948233302,7.723,20.199,20.185,62.728]
[1693948233512,7.722,20.202,20.185,87.697]
[1693948235510,7.719,20.209,20.195,7.724]
[1693948235710,7.719,20.209,20.196,55.0]
[1693948236116,7.719,20.209,20.197,7.723]
[1693948236308,7.719,20.209,20.198,55.0]
[1693948236809,62.15,20.209,20.198,55.0]
[1693948238515,7.719,20.209,20.199,7.722]
[1693948238718,7.719,20.209,20.2,55.0]
[1693948239104,7.719,20.209,20.198,55.0]
[1693948241909,7.719,20.209,20.198,62.723]
[1693948242120,30.05,20.21,20.198,62.723]
[1693948242819,7.719,20.209,20.198,62.723]
[1693948253532,30.05,20.21,20.198,62.723]
[1693948253726,30.05,20.212,20.198,62.723]
[1693948254126,30.05,20.212,20.2,30.05]
[1693948254430,30.05,20.22,20.203,87.113]
[1693948254930,7.715,20.219,20.206,7.72]
[1693948255327,7.715,20.219,20.207,55.0]
[1693948260216,7.715,20.219,20.207,62.719]
[1693948272641,7.715,20.219,20.207,55.0]
[1693948272839,7.715,20.219,20.206,55.0]
[1693948273029,7.715,20.219,20.205,55.0]
[1693948273340,7.715,20.219,20.204,55.0]
[1693948279844,7.715,20.219,20.202,55.0]
[1693948280146,7.715,20.219,20.21,30.05]
[1693948280349,54.367,20.233,20.212,7.717]
[1693948280534,7.71,20.232,20.212,7.717]
[1693948280848,7.709,20.234,20.213,75.0]
[1693948281052,7.709,20.234,20.219,7.715]
[1693948281242,7.709,20.234,20.22,55.0]
[1693948281744,20.0,20.233,20.22,62.714]
[1693948281940,20.0,20.233,20.22,92.764]
[1693948283042,20.0,20.233,20.22,62.714]
[1693948283444,27.71,20.233,20.22,62.714]
[1693948289654,27.71,20.233,20.22,55.0]
[1693948301853,27.71,20.233,20.219,55.0]
[1693948304348,27.71,20.233,20.219,62.715]
[1693948306570,20.0,20.233,20.219,62.715]
[1693948306755,114.623427,20.238,20.219,62.715]
[1693948306954,7.707,20.24,20.22,20.0]
[1693948307160,7.707,20.24,20.225,7.712]
[1693948307370,7.707,20.24,20.226,55.0]
[1693948309071,7.707,20.24,20.224,55.0]
[1693948310860,7.707,20.24,20.224,62.713]
[1693948316966,7.707,20.24,20.224,77.4401379]
[1693948317980,7.707,20.24,20.224,69.7271379]
[1693948320369,7.707,20.24,20.224,62.713]
[1693948337680,7.707,20.24,20.224,55.0]
[1693948337880,7.707,20.24,20.223,62.713]
[1693948340092,7.707,20.24,20.223,55.0]
[1693948340284,55.0,20.239,20.219,7.715]
[1693948340486,7.71,20.233,20.22,50.0]
[1693948342282,7.71,20.233,20.221,55.0]
[1693948342583,7.71,20.233,20.222,20.0]
[1693948342783,7.71,20.233,20.223,55.0]
[1693948361909,7.709,20.236,20.223,62.713]
[1693948368510,24.901,20.24,20.223,62.713]
[1693948368699,24.898,20.243,20.223,62.713]
[1693948368904,105.1607,20.241,20.223,62.713]
[1693948369705,7.707,20.241,20.223,62.713]
[1693948387030,7.707,20.241,20.218,24.7341]
[1693948387226,157.43385449,20.24,20.22,30.0]
[1693948387429,86.98,20.234,20.22,30.0]
[1693948387616,20.0,20.233,20.22,30.0]
[1693948387811,7.711,20.23,20.22,30.0]
[1693948388221,7.711,20.23,20.217,7.716]
[1693948389324,7.711,20.23,20.218,55.0]
[1693948395335,7.711,20.23,20.218,62.715]
[1693948411444,7.711,20.23,20.218,55.0]
[1693948411755,7.711,20.23,20.219,55.0]
[1693948412049,7.711,20.23,20.217,55.0]
[1693948413637,7.711,20.23,20.218,7.715]
[1693948413838,7.711,20.23,20.219,55.0]
[1693948416049,7.71,20.234,20.219,87.642]
[1693948416250,7.708,20.237,20.22,24.77846588]
[1693948416461,7.708,20.237,20.225,7.713]
[1693948416847,7.708,20.237,20.226,55.0]
[1693948418361,7.708,20.237,20.226,62.712]
[1693948418560,7.708,20.237,20.226,55.0]
[1693948418752,7.708,20.237,20.224,62.713]
[1693948420061,7.708,20.239,20.225,7.713]
[1693948420251,7.708,20.239,20.226,55.0]
[1693948420455,24.899,20.242,20.226,55.0]
[1693948420754,7.707,20.241,20.226,62.712]
[1693948423561,7.706,20.243,20.226,62.712]
[1693948434265,7.706,20.243,20.226,55.0]
[1693948434462,106.011,20.243,20.225,55.0]
[1693948434666,7.706,20.243,20.225,62.712]
[1693948437261,7.706,20.243,20.225,87.631]
[1693948438965,42.18684674,20.246,20.225,112.40946588]
[1693948439163,54.318,20.251,20.226,44.77846588]
[1693948439468,24.887,20.251,20.233,32.618]
[1693948439862,7.703,20.25,20.235,7.709]
[1693948440062,7.703,20.25,20.236,55.0]
[1693948440771,7.703,20.25,20.236,7.708]
[1693948440968,7.703,20.25,20.237,55.0]
[1693948443273,7.703,20.25,20.235,55.0]
[1693948449181,95.9087,20.252,20.235,87.616]
[1693948449482,62.041,20.254,20.236,20.0]
[1693948449666,62.041,20.254,20.241,7.706]
[1693948449868,62.041,20.254,20.242,75.0]
[1693948450069,62.041,20.254,20.243,7.706]
[1693948450374,62.041,20.254,20.244,55.0]
[1693948451274,54.339,20.254,20.244,55.0]
[1693948451476,54.339,20.254,20.243,55.0]
[1693948453579,54.339,20.254,20.244,7.705]
[1693948453775,7.7,20.258,20.245,55.0]
[1693948454891,232.3031,20.262,20.245,62.705]
[1693948455088,7.699,20.26,20.245,62.705]
[1693948461293,61.993,20.26,20.245,55.0]
[1693948461605,61.993,20.26,20.244,55.0]
[1693948461807,61.993,20.26,20.244,92.705]
[1693948466893,61.993,20.26,20.244,30.0]
[1693948467103,185.141,20.255,20.244,30.0]
[1693948467299,20.0,20.254,20.238,7.707]
[1693948467507,7.703,20.25,20.238,7.707]
[1693948467707,7.702,20.254,20.238,32.61]
[1693948467893,32.581,20.257,20.238,32.61]
[1693948468091,7.702,20.254,20.238,32.61]
[1693948468290,7.702,20.254,20.243,7.706]
[1693948468509,7.702,20.254,20.244,55.0]
[1693948470506,7.702,20.254,20.242,55.0]
[1693948470706,7.702,20.254,20.24,62.707]
[1693948472408,7.703,20.252,20.24,62.707]
[1693948478906,62.018,20.252,20.24,55.0]
[1693948479115,7.703,20.252,20.238,62.707]
[1693948483704,7.703,20.252,20.238,7.707]
[1693948485506,7.703,20.252,20.239,55.0]
[1693948486320,7.703,20.252,20.239,62.707]
[1693948489212,98.246,20.256,20.239,62.707]
[1693948489213,7.702,20.254,20.239,62.707]
[1693948489406,24.882,20.256,20.239,62.707]
[1693948489407,7.702,20.255,20.239,62.707]
[1693948489609,20.0,20.254,20.239,62.707]
[1693948489909,7.703,20.252,20.239,62.707]
[1693948490708,7.703,20.252,20.239,55.0]
[1693948490908,7.703,20.252,20.237,62.708]
[1693948491319,7.703,20.252,20.237,7.708]
[1693948492710,7.703,20.252,20.238,55.0]
[1693948497318,7.703,20.252,20.238,62.708]
[1693948501527,7.703,20.252,20.238,55.0]
[1693948502031,7.703,20.252,20.237,55.0]
[1693948503536,7.703,20.252,20.235,55.0]
[1693948504733,7.703,20.252,20.236,7.709]
[1693948504922,7.703,20.252,20.237,55.0]
[1693948505727,7.703,20.252,20.235,55.0]
[1693948506229,55.0,20.251,20.23,7.711]
[1693948506432,7.705,20.246,20.233,7.709]
[1693948507533,7.705,20.246,20.234,55.0]
[1693948510024,7.705,20.246,20.233,55.0]
[1693948510237,7.705,20.246,20.232,37.71]
[1693948510527,7.705,20.246,20.233,27.709]
[1693948510935,7.705,20.246,20.233,20.0]
[1693948511234,7.705,20.246,20.23,20.0]
[1693948511435,7.705,20.246,20.231,85.0]
[1693948511735,7.705,20.246,20.233,7.709]
[1693948511933,93.4122,20.248,20.235,7.709]
[1693948511934,101.1162,20.248,20.235,7.709]
[1693948512344,101.1162,20.248,20.236,55.0]
[1693948512639,24.888,20.251,20.237,7.708]
[1693948512833,7.703,20.251,20.238,55.0]
[1693948513022,7.703,20.251,20.239,7.707]
[1693948513224,98.7592,20.259,20.24,55.0]
[1693948513440,98.7592,20.259,20.245,7.705]
[1693948513623,98.7592,20.259,20.246,55.0]
[1693948513928,106.4592,20.259,20.246,62.704]
[1693948515224,7.7,20.259,20.246,62.704]
[1693948518333,7.7,20.259,20.246,55.0]
[1693948518520,7.7,20.259,20.245,55.0]
[1693948520329,7.7,20.259,20.243,7.706]
[1693948520330,7.7,20.259,20.244,55.0]
[1693948520940,7.7,20.259,20.242,62.706]
[1693948521246,7.7,20.259,20.243,20.0]
[1693948521445,7.7,20.259,20.245,7.705]
[1693948523228,71.45145613,20.258,20.231,30.0]
[1693948523438,86.913,20.25,20.231,102.84618517]
[1693948523740,86.913,20.25,20.231,62.621]
[1693948524143,7.703,20.25,20.231,62.621]
[1693948524450,7.703,20.252,20.231,62.621]
[1693948524649,25.80072692,20.255,20.232,55.0]
[1693948524860,20.0,20.254,20.233,30.0]
[1693948525036,7.704,20.248,20.233,30.0]
[1693948525238,20.0,20.254,20.234,55.0]
[1693948525451,20.0,20.254,20.238,7.707]
[1693948525647,20.0,20.254,20.239,55.0]
[1693948526051,75.0,20.254,20.239,55.0]
[1693948528540,7.702,20.253,20.239,55.0]
[1693948536271,20.0,20.254,20.239,62.707]
[1693948536468,27.702,20.254,20.239,62.707]
[1693948541773,27.702,20.254,20.239,55.0]
[1693948541960,27.702,20.254,20.238,55.0]
[1693948542773,27.702,20.254,20.238,62.708]
[1693948544375,27.702,20.254,20.238,55.0]
[1693948549689,55.0,20.253,20.238,55.0]
[1693948549988,7.704,20.249,20.237,14.48863635]
[1693948550979,46.348269,20.249,20.237,14.48863635]
[1693948556391,46.348269,20.249,20.229,14.47974307]
[1693948556699,55.0,20.248,20.23,50.0]
[1693948556897,7.705,20.245,20.23,57.711]
[1693948557578,7.705,20.245,20.225,7.713]
[1693948557788,75.0,20.244,20.225,37.713]
[1693948557985,7.707,20.239,20.225,37.713]
[1693948558295,7.707,20.241,20.225,37.713]
[1693948558683,7.707,20.241,20.226,55.0]
[1693948558894,7.707,20.241,20.228,30.0]
[1693948559094,7.707,20.241,20.229,55.0]
[1693948559695,27.706,20.244,20.229,62.711]
[1693948560585,98.244,20.256,20.229,161.084]
[1693948560787,98.244,20.256,20.23,50.0]
[1693948561092,7.703,20.25,20.236,7.708]
[1693948561295,32.591,20.25,20.237,55.0]
[1693948561500,32.591,20.25,20.232,7.71]
[1693948561794,130.856,20.25,20.233,82.709]
[1693948562099,7.705,20.245,20.233,82.709]
[1693948563705,7.705,20.245,20.233,75.0]
[1693948563905,7.705,20.245,20.233,55.0]
[1693948564193,7.705,20.245,20.232,55.0]
[1693948564419,7.705,20.245,20.233,20.0]
[1693948566695,7.704,20.249,20.234,62.709]
[1693948585017,70.412,20.251,20.234,62.709]
[1693948585719,7.702,20.253,20.234,62.709]
[1693948588309,33.50408095,20.253,20.234,62.709]
[1693948588716,7.702,20.253,20.234,62.709]
[1693948594020,7.701,20.257,20.235,24.77846588]
[1693948594206,20.0,20.256,20.241,7.706]
[1693948594406,27.701,20.256,20.242,55.0]
[1693948595120,27.701,20.256,20.242,62.706]
[1693948597920,7.7,20.258,20.243,20.0]
[1693948598121,24.875,20.261,20.246,7.705]
[1693948598514,24.875,20.261,20.247,55.0]
[1693948598911,7.699,20.261,20.247,55.0]
[1693948599112,54.289,20.263,20.248,7.704]
[1693948599313,7.698,20.264,20.249,55.0]
[1693948599525,7.698,20.264,20.249,62.703]
[1693948601627,32.569,20.264,20.249,62.703]
[1693948603516,32.569,20.264,20.245,128.92535407]
[1693948603828,55.0,20.263,20.247,7.704]
[1693948604031,7.699,20.26,20.247,7.704]
[1693948604917,7.699,20.26,20.248,55.0]
[1693948606626,7.699,20.262,20.248,62.704]
[1693948607730,7.699,20.262,20.248,55.0]
[1693948609321,55.0,20.261,20.245,49.81488819]
[1693948609521,32.581,20.257,20.245,49.81488819]
[1693948627128,7.701,20.257,20.246,55.0]
[1693948628845,7.7,20.259,20.246,55.0]
[1693948631027,7.7,20.259,20.247,7.704]
[1693948631228,7.7,20.259,20.248,55.0]
[1693948632546,55.0,20.263,20.248,55.0]
[1693948632853,7.698,20.264,20.249,7.703]
[1693948633058,7.698,20.264,20.25,55.0]
[1693948633246,7.698,20.264,20.251,7.703]
[1693948633434,7.698,20.264,20.252,55.0]
[1693948633846,22.23010275,20.267,20.253,20.0]
[1693948634055,22.23010275,20.267,20.256,7.701]
[1693948634247,22.23010275,20.267,20.257,55.0]
[1693948634558,14.53310275,20.267,20.257,55.0]
[1693948635055,7.696,20.269,20.257,55.0]
[1693948635248,22.52423296,20.269,20.257,55.0]
[1693948635446,76.79423296,20.269,20.253,27.702]
[1693948635640,76.79423296,20.269,20.254,55.0]
[1693948639350,76.79423296,20.269,20.253,7.702]
[1693948640450,7.696,20.269,20.253,7.702]
[1693948640652,7.696,20.269,20.254,55.0]
[1693948640848,7.696,20.269,20.257,7.7]
[1693948641152,7.696,20.269,20.258,55.0]
[1693948641547,7.696,20.269,20.256,55.0]
[1693948645356,7.696,20.269,20.256,62.701]
[1693948645658,7.696,20.269,20.256,55.0]
[1693948645860,7.696,20.269,20.256,7.701]
[1693948646157,7.696,20.269,20.257,55.0]
[1693948649251,7.696,20.269,20.257,62.7]
[1693948651955,6.696,20.269,20.257,62.7]
[1693948652153,6.696,20.269,20.258,0.99999011]
[1693948653553,6.696,20.269,20.258,55.99999011]
[1693948653763,6.696,20.269,20.259,55.0]
[1693948653962,6.696,20.269,20.26,0.99999011]
[1693948654263,6.696,20.269,20.257,0.99999011]
[1693948667170,6.696,20.269,20.255,14.50074073]
[1693948667171,6.696,20.269,20.256,0.99999011]
[1693948672377,97.6783,20.268,20.256,0.99999011]
[1693948672679,7.697,20.267,20.256,0.99999011]
[1693948681564,7.697,20.267,20.255,7.701]
[1693948681771,97.6783,20.268,20.256,7.701]
[1693948681971,97.6783,20.268,20.26,7.699]
[1693948682171,97.6783,20.268,20.255,98.243]
[1693948682172,7.695,20.272,20.262,0.99999011]
[1693948683075,7.695,20.272,20.261,55.0]
[1693948684971,7.695,20.272,20.254,7.701]
[1693948685286,7.695,20.272,20.255,30.99999011]
[1693948686779,7.695,20.272,20.256,55.0]
[1693948687082,7.695,20.272,20.257,0.99999011]
[1693948688677,95.8689,20.271,20.257,0.99999011]
[1693948688977,7.697,20.267,20.257,0.99999011]
[1693948690282,150.1359,20.271,20.257,0.99999011]
[1693948690479,7.697,20.268,20.257,0.99999011]
[1693948695683,7.696,20.27,20.257,33.57999011]
[1693948695885,7.696,20.27,20.259,0.99999011]
[1693948702197,7.696,20.27,20.259,8.69999011]
[1693948702496,7.696,20.27,20.26,55.0]
[1693948702790,7.696,20.27,20.259,0.99999011]
[1693948702999,61.963,20.27,20.259,0.99999011]
[1693948707794,61.963,20.27,20.258,0.99999011]
[1693948708499,7.696,20.27,20.258,0.99999011]
[1693948709192,7.696,20.27,20.258,55.99999011]
[1693948709498,7.696,20.27,20.258,0.99999011]
[1693948711297,95.8689,20.271,20.258,63.69999011]
[1693948711704,39.95261598,20.274,20.258,63.69999011]
[1693948712000,24.859,20.275,20.258,63.69999011]
[1693948712188,7.695,20.271,20.258,63.69999011]
[1693948723811,69.97333332,20.276,20.258,63.69999011]
[1693948724116,7.696,20.27,20.258,55.99999011]
[1693948729310,7.696,20.27,20.258,0.99999011]
[1693948729617,7.696,20.27,20.256,0.99999011]
[1693948729819,55.0,20.269,20.254,38.70099011]
[1693948730315,155.0753,20.269,20.254,38.70099011]
[1693948730520,155.0753,20.269,20.254,30.99999011]
[1693948730719,155.0753,20.269,20.254,0.99999011]
[1693948733905,155.0753,20.269,20.254,7.701]
[1693948734313,155.0753,20.269,20.255,0.99999011]
[1693948737325,155.0753,20.269,20.255,8.70099011]
[1693948739530,169.79839969,20.269,20.255,8.70099011]
[1693948739717,162.10239969,20.269,20.255,8.70099011]
[1693948740313,92.3793,20.269,20.256,55.0]
[1693948740511,92.3793,20.269,20.257,0.99999011]
[1693948758142,131.90127529,20.269,20.257,0.99999011]
[1693948758748,139.59727529,20.269,20.257,0.99999011]
[1693948766334,139.59727529,20.269,20.252,50.99999011]
[1693948766648,100.0753,20.269,20.253,55.0]
[1693948766849,100.0753,20.269,20.254,0.99999011]
[1693948767062,100.0753,20.269,20.254,8.70099011]
[1693948776150,92.3793,20.269,20.254,8.70099011]
[1693948776350,92.3793,20.269,20.255,55.0]
[1693948776545,92.3793,20.269,20.256,8.70099011]
[1693948776753,92.3793,20.269,20.257,55.0]
[1693948777052,92.3793,20.269,20.258,0.99999011]
[1693948782860,92.3793,20.269,20.258,8.69999011]
[1693948794773,92.3793,20.269,20.258,0.99999011]
[1693948797159,92.3793,20.269,20.258,8.69999011]
[1693948797363,92.3793,20.269,20.259,55.0]
[1693948797570,92.3793,20.269,20.26,0.99999011]
[1693948800162,92.3793,20.269,20.26,8.69899011]
[1693948800362,92.3793,20.269,20.261,55.0]